bitfinex/quotes_SOLUSD_20220218
["timestamp","ask_amount","ask_price","bid_price","bid_amount"]
[1645195237338,51.40216773,92.153,92.011,5.43]
[1645195237536,51.40216773,92.153,92.029,5.0]
[1645195237736,51.40216773,92.153,92.03,18.99740377]
[1645195237937,51.40216773,92.153,92.03,13.56840377]
[1645195238537,106.6,92.152,92.031,5.429]
[1645195238738,106.6,92.152,92.03,13.56840377]
[1645195238739,109.2293831,92.152,92.03,13.56840377]
[1645195238938,51.40216773,92.153,92.03,13.56840377]
[1645195239842,2.6293831,92.185,92.031,106.6]
[1645195240040,75.2238,92.224,92.033,106.6]
[1645195240239,2.6293831,92.213,92.049,5.0]
[1645195240542,109.2293831,92.208,92.05,18.246]
[1645195240744,106.6,92.206,92.051,32.39025353]
[1645195241340,106.6,92.204,92.051,32.39025353]
[1645195241738,2.6293831,92.203,92.051,32.39025353]
[1645195241940,106.6,92.19,92.051,32.39025353]
[1645195242140,106.6,92.178,92.051,32.39025353]
[1645195242340,106.6,92.174,92.051,32.39025353]
[1645195242543,106.6,92.172,92.01,5.428]
[1645195242740,42.61797419,92.173,91.971,5.429]
[1645195242741,0.53,92.162,91.971,5.429]
[1645195242942,170.25,92.16,91.975,2.6293831]
[1645195243140,170.25,92.158,91.975,2.6293831]
[1645195243344,170.25,92.156,91.981,106.6]
[1645195243540,170.25,92.154,91.982,32.20929293]
[1645195243741,170.78,92.152,91.982,32.20929293]
[1645195243943,0.53,92.132,91.982,32.20929293]
[1645195244142,106.6,92.13,91.982,32.20929293]
[1645195244345,106.6,92.128,91.982,32.20929293]
[1645195244543,63.65,92.127,91.982,32.20929293]
[1645195244744,170.25,92.12,91.982,32.20929293]
[1645195244943,106.6,92.118,91.982,32.20929293]
[1645195245542,2.6293831,92.117,91.982,32.20929293]
[1645195246743,2.6293831,92.117,91.88,54.385]
[1645195246744,0.32449771,92.076,91.88,54.385]
[1645195246946,4.64,92.032,91.87,7.0]
[1645195247143,5.17,92.042,91.861,47.8587]
[1645195247344,170.25,92.03,91.861,47.8587]
[1645195247543,5.17,92.012,91.861,47.8587]
[1645195247745,170.25,92.026,91.862,11.33949553]
[1645195247943,106.6,92.024,91.862,11.33949553]
[1645195248142,170.25,92.02,91.863,5.438]
[1645195248343,170.25,92.009,91.826,5.438]
[1645195248545,0.53,92.002,91.823,22.5056]
[1645195248742,170.25,92.007,91.823,22.5056]
[1645195248942,170.25,91.979,91.823,22.5056]
[1645195249143,170.25,91.969,91.823,22.5056]
[1645195249344,170.25,91.969,91.824,10.67502378]
[1645195249548,12.82,91.97,91.76,5.44]
[1645195249549,5.17,91.942,91.76,5.44]
[1645195249746,170.25,91.949,91.744,33.10028111]
[1645195249949,170.25,91.939,91.76,16.3402]
[1645195250245,170.25,91.937,91.76,16.3402]
[1645195250444,170.25,91.935,91.761,12.90001543]
[1645195250647,170.25,91.935,91.744,24.5712]
[1645195250648,4.1602,91.918,91.711,5.88968435]
[1645195250851,106.6,91.904,91.71,7.0]
[1645195251050,106.6,91.902,91.71,7.0]
[1645195251248,106.6,91.902,91.711,5.446]
[1645195251455,63.65,91.891,91.7,16.3508]
[1645195251659,106.6,91.882,91.701,15.39260221]
[1645195252060,106.6,91.88,91.701,15.39260221]
[1645195252257,119.42,91.88,91.701,15.39260221]
[1645195252458,2.1293831,91.879,91.701,14.89260221]
[1645195252658,106.6,91.878,91.701,14.89260221]
[1645195252859,20.39792291,91.879,91.72,16.3475]
[1645195253059,48.8588876,91.89,91.721,9.24876216]
[1645195253261,2.6293831,91.882,91.721,9.24876216]
[1645195253458,46.2295045,91.89,91.721,9.24876216]
[1645195253858,2.6293831,91.92,91.73,12.82]
[1645195254068,23.39735353,91.911,91.731,5.445]
[1645195254260,5.53,91.882,91.702,94.7856]
[1645195254466,74.8963,91.909,91.702,94.7856]
[1645195254661,74.8963,91.909,91.703,5.446]
[1645195254961,41.2566944,91.908,91.73,11.91668333]
[1645195255159,41.2566944,91.908,91.74,16.3441]
[1645195255360,41.2566944,91.908,91.73,11.91668333]
[1645195255361,28.84090909,91.907,91.73,11.91668333]
[1645195255573,0.53,91.882,91.73,11.91668333]
[1645195255771,39.16771356,91.88,91.73,11.91668333]
[1645195255971,5.446,91.879,91.73,11.91668333]
[1645195256177,28.84190909,91.879,91.73,11.91668333]
[1645195256373,2.6293831,91.878,91.73,11.91668333]
[1645195256574,5.446,91.877,91.73,11.91668333]
[1645195256775,106.6,91.876,91.73,11.91668333]
[1645195256978,5.446,91.875,91.73,11.91668333]
[1645195257374,5.446,91.875,91.689,5.0]
[1645195257375,0.31429442,91.83,91.584,241.6349066]
[1645195257578,5.0,91.742,91.584,16.5788]
[1645195257773,5.0,91.742,91.492,5.452]
[1645195257774,9.53959617,91.689,91.492,5.452]
[1645195257974,5.76822211,91.688,91.52,16.3745]
[1645195258174,5.76822211,91.688,91.534,229.75624745]
[1645195258376,5.76822211,91.688,91.535,57.39525719]
[1645195258578,5.76822211,91.688,91.535,51.93825719]
[1645195258579,5.457,91.687,91.535,51.93825719]
[1645195258778,5.27310749,91.686,91.535,51.93825719]
[1645195258975,9.53959617,91.689,91.535,51.93825719]
[1645195258976,7.0,91.68,91.535,51.93825719]
[1645195259174,5.13192556,91.679,91.535,51.93825719]
[1645195259376,10.58992556,91.679,91.535,51.43825719]
[1645195259575,0.53,91.651,91.453,16.0761]
[1645195259783,0.53,91.651,91.38,7.0]
[1645195259784,12.82,91.64,91.38,7.0]
[1645195259976,5.0,91.601,91.381,5.463]
[1645195260177,106.6,91.63,91.363,5.465]
[1645195260376,4.90586598,91.609,91.382,14.49127951]
[1645195260576,9.96542221,91.608,91.383,50.60961959]
[1645195260776,5.87061366,91.607,91.41,47.98018976]
[1645195260976,5.45733494,91.606,91.411,5.463]
[1645195261175,5.463,91.628,91.411,5.463]
[1645195261176,7.0,91.6,91.411,5.463]
[1645195261378,5.464,91.67,91.413,0.3248255]
[1645195261578,5.462,91.72,91.421,106.6]
[1645195261787,28.53517234,91.708,91.423,106.6]
[1645195261993,7.0,91.67,91.425,106.6]
[1645195262178,7.0,91.67,91.43,16.3915]
[1645195262380,5.461,91.669,91.479,5.0]
[1645195262578,19.82,91.67,91.48,47.49195821]
[1645195262579,12.82,91.67,91.48,47.49195821]
[1645195262906,7.0,91.66,91.48,47.49195821]
[1645195263105,7.0,91.66,91.509,5.0]
[1645195263301,12.82,91.7,91.51,55.8248294]
[1645195263506,11.28697298,91.729,91.579,5.0]
[1645195263706,11.28697298,91.729,91.581,53.22572758]
[1645195263910,7.0,91.73,91.599,5.0]
[1645195264104,7.0,91.73,91.619,5.0]
[1645195264303,7.0,91.73,91.6,57.98627035]
[1645195264304,5.68082841,91.735,91.65,47.98166922]
[1645195264508,11.28125237,91.782,91.669,5.0]
[1645195264708,7.0,91.82,91.651,8.0823831]
[1645195264903,7.0,91.82,91.67,47.84965266]
[1645195265306,98.7987,91.868,91.69,47.26280485]
[1645195265516,7.0,91.81,91.709,5.0]
[1645195265705,93.3497,91.868,91.71,41.99172843]
[1645195266108,7.0,91.86,91.71,41.99172843]
[1645195266508,7.0,91.86,91.711,5.447]
[1645195266706,24.5991,91.868,91.711,5.447]
[1645195266905,24.5991,91.868,91.71,41.99172843]
[1645195267106,2.6293831,91.867,91.71,41.99172843]
[1645195267506,24.5991,91.868,91.71,41.99172843]
[1645195267705,2.6293831,91.867,91.71,41.99172843]
[1645195267905,7.0,91.84,91.71,41.99172843]
[1645195268506,5.448,91.839,91.71,41.99172843]
[1645195268710,7.0,91.8,91.71,41.99172843]
[1645195269308,7.0,91.8,91.651,22.6029]
[1645195269309,5.449,91.799,91.651,22.6029]
[1645195269509,5.449,91.799,91.6,16.3614]
[1645195269510,7.0,91.79,91.601,5.45]
[1645195269707,63.65,91.788,91.642,22.9372]
[1645195269909,63.65,91.788,91.643,106.6]
[1645195270109,106.6,91.785,91.643,106.6]
[1645195270311,106.6,91.779,91.644,150.12696525]
[1645195270711,63.65,91.778,91.644,43.52696525]
[1645195270910,7.0,91.79,91.644,43.52696525]
[1645195270911,106.6,91.763,91.644,43.52696525]
[1645195271317,106.6,91.759,91.618,5.452]
[1645195271517,106.6,91.759,91.324,18.19745449]
[1645195271518,106.6,91.755,91.583,5.453]
[1645195271727,63.65,91.748,91.569,4.4]
[1645195271914,64.18,91.742,91.569,4.4]
[1645195272113,106.6,91.729,91.569,4.4]
[1645195272313,112.82,91.729,91.621,48.6961056]
[1645195272515,7.0,91.73,91.621,48.6961056]
[1645195272713,7.0,91.73,91.622,5.454]
[1645195272913,7.0,91.73,91.639,5.0]
[1645195273115,7.0,91.73,91.641,44.66040434]
[1645195273513,488.56440498,91.814,91.641,44.66040434]
[1645195273514,106.6,91.743,91.641,44.66040434]
[1645195273714,5.45,91.791,91.641,44.66040434]
[1645195273916,5.45,91.807,91.641,44.66040434]
[1645195274113,5.45,91.828,91.642,8.0793831]
[1645195274317,7.0,91.79,91.642,8.0793831]
[1645195274514,106.6,91.789,91.643,2.6293831]
[1645195274715,7.0,91.79,91.644,5.45]
[1645195275315,23.4139,91.806,91.645,20.33141327]
[1645195275516,23.4139,91.806,91.66,54.0040637]
[1645195275716,23.4139,91.806,91.661,5.45]
[1645195275918,23.4139,91.806,91.669,5.0]
[1645195276124,23.4139,91.806,91.671,106.6]
[1645195276329,7.0,91.85,91.691,106.6]
[1645195276518,7.0,91.85,91.693,106.6]
[1645195276720,7.0,91.85,91.692,5.448]
[1645195276923,7.0,91.85,91.691,5.448]
[1645195277118,23.8709,91.861,91.691,5.448]
[1645195277119,23.8709,91.861,91.699,5.0]
[1645195277321,23.8709,91.861,91.701,106.6]
[1645195277520,23.8709,91.861,91.702,5.447]
[1645195277721,105.6,91.86,91.7,5.447]
[1645195277918,105.6,91.86,91.69,42.25705288]
[1645195278118,23.8709,91.861,91.699,5.0]
[1645195278322,23.8709,91.861,91.701,106.6]
[1645195278521,23.8709,91.861,91.702,5.447]
[1645195278720,23.8709,91.861,91.69,55.07705288]
[1645195278721,106.6,91.86,91.69,42.25705288]
[1645195278924,0.53,91.852,91.69,42.25705288]
[1645195279128,106.6,91.85,91.69,42.25705288]
[1645195279323,106.6,91.848,91.69,42.25705288]
[1645195279525,106.6,91.846,91.69,42.25705288]
[1645195279925,2.6293831,91.851,91.69,42.25705288]
[1645195280126,10.72261076,91.878,91.701,106.6]
[1645195280324,13.89473416,91.899,91.721,106.6]
[1645195280530,74.91535106,91.899,91.72,52.29982933]
[1645195280725,2.6293831,91.899,91.721,23.14803017]
[1645195280925,106.6,91.89,91.72,52.29982933]
[1645195281125,23.8078,91.891,91.739,5.0]
[1645195281425,23.8078,91.891,91.722,106.6]
[1645195281426,23.8078,91.891,91.749,5.0]
[1645195281651,23.8078,91.891,91.76,45.01865291]
[1645195281825,22.5781,91.936,91.769,5.0]
[1645195282029,22.5781,91.936,91.78,49.3401609]
[1645195282225,11.24674792,91.948,91.789,5.0]
[1645195282425,456.77618721,91.964,91.83,40.53027574]
[1645195283026,456.77618721,91.964,91.831,106.6]
[1645195283227,105.0,91.922,91.829,5.0]
[1645195283431,112.50237569,91.922,91.731,4.62579677]
[1645195283629,5.445,91.921,91.729,5.0]
[1645195283829,7.50237569,91.922,91.759,5.0]
[1645195284029,5.444,91.921,91.76,4.04253522]
[1645195284230,106.6,91.944,91.779,4.04]
[1645195284533,0.53,91.952,91.763,5.442]
[1645195284731,2.6293831,91.922,91.761,22.25203017]
[1645195284927,2.6293831,91.922,91.762,22.25203017]
[1645195285129,5.53,91.942,91.762,22.25203017]
[1645195285130,20.00864993,91.934,91.763,38.88987108]
[1645195285428,106.6,91.933,91.764,22.25203017]
[1645195285628,106.6,91.931,91.764,22.25203017]
[1645195285830,111.68,91.931,91.764,22.25203017]
[1645195286029,106.6,91.929,91.763,38.88987108]
[1645195286230,106.6,91.921,91.763,38.88987108]
[1645195286431,106.6,91.919,91.763,38.88987108]
[1645195286633,106.6,91.917,91.763,38.88987108]
[1645195286831,106.6,91.915,91.763,38.88987108]
[1645195287035,106.6,91.913,91.763,38.88987108]
[1645195287233,106.6,91.911,91.763,38.88987108]
[1645195287434,106.1,91.909,91.763,38.88987108]
[1645195287633,106.1,91.905,91.763,38.88987108]
[1645195287832,17.88777277,91.906,91.763,38.88987108]
[1645195288429,7.0,91.93,91.763,60.78549903]
[1645195289030,106.6,91.929,91.763,60.78549903]
[1645195289434,106.6,91.927,91.764,106.6]
[1645195289636,106.6,91.927,91.763,60.78549903]
[1645195289835,106.6,91.927,91.764,21.89562795]
[1645195290136,7.0,91.93,91.77,16.3359]
[1645195290337,2.6293831,91.955,91.78,12.82]
[1645195290534,7.0,91.94,91.781,5.442]
[1645195290735,7.0,91.94,91.78,34.71562795]
[1645195290935,5.442,91.949,91.78,21.89562795]
[1645195291134,106.6,91.929,91.781,38.81353897]
[1645195291335,2.97810746,91.928,91.781,38.81353897]
[1645195291536,2.97810746,91.928,91.782,106.6]
[1645195291737,6.5,91.93,91.782,128.49562795]
[1645195291940,54.4608,91.98,91.799,5.0]
[1645195292140,6.5,91.96,91.801,106.6]
[1645195292340,106.6,91.963,91.802,5.442]
[1645195292538,106.6,91.963,91.8,21.89562795]
[1645195292739,18.8057387,91.956,91.801,52.59960387]
[1645195292940,6.5,91.96,91.809,5.0]
[1645195293139,6.5,91.97,91.829,5.0]
[1645195293339,6.5,91.97,91.83,5.44]
[1645195293539,6.5,91.97,91.831,106.6]
[1645195293740,6.5,91.97,91.831,128.49562795]
[1645195293940,23.54627695,91.966,91.832,46.55068918]
[1645195294745,8.0693831,91.965,91.832,46.55068918]
[1645195294943,23.54627695,91.966,91.832,46.55068918]
[1645195295141,23.25055568,91.966,91.832,46.55068918]
[1645195295343,106.6,91.965,91.832,46.55068918]
[1645195295946,5.44,91.964,91.832,46.55068918]
[1645195296142,23.25055568,91.966,91.832,46.55068918]
[1645195297565,106.6,91.965,91.832,46.55068918]
[1645195297771,6.5,91.94,91.832,46.55068918]
[1645195297968,0.35034659,91.939,91.832,46.55068918]
[1645195298166,176.04134659,91.939,91.772,97.1566]
[1645195298365,178.67072969,91.939,91.783,24.8905]
[1645195298566,2.6293831,91.938,91.783,24.8905]
[1645195298767,0.53,91.902,91.752,21.69123906]
[1645195298966,0.53,91.902,91.699,5.442]
[1645195298967,170.25,91.889,91.699,5.442]
[1645195299168,6.56190929,91.858,91.763,48.23394586]
[1645195299368,106.6,91.857,91.683,269.1882]
[1645195299572,6.56190929,91.858,91.689,106.6]
[1645195299769,106.6,91.857,91.683,263.7442]
[1645195299970,106.6,91.851,91.683,216.1831]
[1645195300173,6.5,91.83,91.683,216.1831]
[1645195300378,6.5,91.83,91.762,0.0001]
[1645195300773,106.6,91.829,91.762,0.0001]
[1645195300969,112.046,91.829,91.762,0.0001]
[1645195301175,6.5,91.83,91.762,0.0001]
[1645195301575,106.6,91.829,91.762,0.0001]
[1645195302174,106.6,91.829,91.785,0.51824347]
[1645195302374,106.6,91.827,91.785,4.347e-05]
[1645195302682,63.65,91.81,91.785,4.347e-05]
[1645195302873,106.6,91.809,91.785,4.347e-05]
[1645195303474,63.65,91.806,91.785,4.347e-05]
[1645195303677,5.53,91.792,91.785,4.347e-05]
[1645195303876,106.6,91.789,91.785,4.347e-05]
[1645195304180,6.5,91.8,91.701,46.08755204]
[1645195304181,0.01995653,91.778,91.701,46.08755204]
[1645195304577,0.01995653,91.778,91.64,16.3627]
[1645195304876,106.6,91.749,91.611,117.0068]
[1645195305475,16.3736,91.73,91.683,41.88116362]
[1645195305677,6.5,91.75,91.683,41.88116362]
[1645195306077,106.6,91.763,91.683,41.88116362]
[1645195306477,106.6,91.761,91.683,41.88116362]
[1645195306677,54.571,91.77,91.683,41.88116362]
[1645195306977,0.01995653,91.778,91.683,41.88116362]
[1645195307178,0.01995653,91.778,91.684,106.6]
[1645195307578,0.01995653,91.778,91.684,126.63012795]
[1645195307791,0.01995653,91.778,91.686,106.6]
[1645195307985,0.01995653,91.778,91.691,106.6]
[1645195308382,0.01995653,91.778,91.693,106.6]
[1645195308579,0.01995653,91.778,91.692,19.53012795]
[1645195308778,0.01995653,91.778,91.683,41.88116362]
[1645195309178,0.01995653,91.778,91.684,5.45]
[1645195309377,0.01995653,91.778,91.711,48.63096108]
[1645195309778,42.2870261,91.839,91.711,48.63096108]
[1645195310982,153.6546,91.854,91.72,16.35]
[1645195311281,16.35,91.87,91.721,106.6]
[1645195311484,34.9641388,91.879,91.723,106.6]
[1645195311690,34.9641388,91.879,91.739,5.0]
[1645195311886,33.74591011,91.874,91.741,106.6]
[1645195312091,33.74591011,91.874,91.77,16.341]
[1645195312289,33.74591011,91.874,91.771,53.90460788]
[1645195313790,23.7195,91.879,91.772,106.6]
[1645195314489,23.7195,91.879,91.781,106.6]
[1645195314691,6.73,91.88,91.781,106.6]
[1645195315695,106.6,91.922,91.781,106.6]
[1645195316095,122.9397,91.92,91.79,16.3376]
[1645195316295,129.4397,91.92,91.791,49.65522025]
[1645195316498,122.9397,91.92,91.791,49.65522025]
[1645195316702,106.6,91.918,91.791,49.65522025]
[1645195317098,170.25,91.899,91.791,49.65522025]
[1645195317298,60.9827,91.91,91.791,49.65522025]
[1645195317299,170.25,91.897,91.791,49.65522025]
[1645195317499,175.23,91.897,91.791,49.65522025]
[1645195317699,2.6293831,91.896,91.791,49.65522025]
[1645195317900,6.5,91.89,91.791,49.65522025]
[1645195318107,6.5,91.89,91.751,75.4643]
[1645195318108,175.694,91.889,91.751,75.4643]
[1645195318300,178.3233831,91.889,91.751,75.4643]
[1645195318499,106.6,91.879,91.751,75.4643]
[1645195319101,63.65,91.874,91.74,53.61411691]
[1645195319398,63.65,91.874,91.64,53.21]
[1645195319399,0.53,91.832,91.666,5.446]
[1645195319600,106.6,91.789,91.684,106.6]
[1645195319803,6.5,91.79,91.684,106.6]
[1645195320202,63.65,91.828,91.638,5.449]
[1645195320403,63.65,91.786,91.723,0.0001]
[1645195320608,63.65,91.77,91.682,0.0001]
[1645195320800,30.0,91.771,91.682,0.0001]
[1645195320801,0.53,91.752,91.682,0.0001]
[1645195321005,175.7,91.751,91.682,0.0001]
[1645195321202,106.6,91.751,91.682,0.0001]
[1645195321404,106.6,91.739,91.682,0.0001]
[1645195321602,6.5,91.74,91.682,0.0001]
[1645195322000,106.6,91.758,91.682,0.0001]
[1645195322200,63.65,91.779,91.682,0.0001]
[1645195322601,63.65,91.759,91.682,0.0001]
[1645195322802,106.6,91.748,91.682,0.0001]
[1645195323015,170.25,91.74,91.682,0.0001]
[1645195323221,2.6293831,91.758,91.682,0.0001]
[1645195323417,11.23538854,91.77,91.682,0.0001]
[1645195323619,6.5,91.76,91.682,0.0001]
[1645195323818,106.6,91.759,91.682,0.0001]
[1645195324820,106.6,91.759,91.641,50.3563147]
[1645195325422,106.6,91.757,91.641,50.3563147]
[1645195326623,106.6,91.739,91.641,50.3563147]
[1645195326821,16.3731,91.73,91.62,16.3705]
[1645195327021,106.6,91.729,91.604,73.7788]
[1645195327421,106.6,91.739,91.604,73.7788]
[1645195327721,7.0,91.76,91.604,73.7788]
[1645195327922,0.49189143,91.739,91.606,106.1]
[1645195328320,7.0,91.76,91.606,106.1]
[1645195328524,106.6,91.759,91.611,106.1]
[1645195328721,106.6,91.759,91.601,16.96068351]
[1645195328722,63.65,91.759,91.601,5.453]
[1645195328922,63.65,91.7,91.583,2.6293831]
[1645195329126,5.0,91.671,91.508,11.25994067]
[1645195329322,144.0189,91.698,91.509,5.0]
[1645195329521,144.0189,91.698,91.508,39.78137952]
[1645195329522,144.0189,91.698,91.529,5.0]
[1645195329725,7.0,91.67,91.54,16.3849]
[1645195330021,16.3788,91.69,91.542,106.6]
[1645195330224,16.3788,91.69,91.543,5.457]
[1645195330422,2.6293831,91.689,91.53,53.17307261]
[1645195330631,109.2293831,91.689,91.53,53.17307261]
[1645195331034,106.6,91.687,91.53,53.17307261]
[1645195331430,1.49005709,91.658,91.53,53.17307261]
[1645195331832,170.25,91.64,91.53,53.17307261]
[1645195332033,170.25,91.64,91.434,28.53634621]
[1645195332034,170.25,91.62,91.449,5.458]
[1645195332232,170.25,91.61,91.484,2.61]
[1645195332432,122.9972,91.61,91.485,5.461]
[1645195332634,122.9972,91.61,91.484,2.61]
[1645195333032,106.6,91.608,91.485,46.41137183]
[1645195333432,9.34931431,91.609,91.485,46.41137183]
[1645195333433,106.6,91.607,91.485,46.41137183]
[1645195333636,106.6,91.599,91.485,46.41137183]
[1645195334635,106.6,91.589,91.485,46.41137183]
[1645195334834,37.27804449,91.588,91.485,46.41137183]
[1645195335234,170.25,91.587,91.485,46.41137183]
[1645195335436,109.2293831,91.587,91.485,46.41137183]
[1645195335635,2.6293831,91.587,91.485,46.41137183]
[1645195335835,2.6293831,91.605,91.485,46.41137183]
[1645195336038,7.0,91.6,91.485,46.41137183]
[1645195336436,63.65,91.628,91.485,46.41137183]
[1645195336636,7.0,91.59,91.485,46.41137183]
[1645195336836,40.24634613,91.589,91.485,46.41137183]
[1645195337236,23.3977,91.6,91.485,46.41137183]
[1645195337441,7.0,91.6,91.486,106.6]
[1645195337636,7.0,91.63,91.488,106.6]
[1645195337837,7.0,91.63,91.486,5.46]
[1645195338040,7.0,91.63,91.49,16.392]
[1645195338239,7.0,91.63,91.492,106.6]
[1645195338439,7.0,91.63,91.493,5.46]
[1645195338641,7.0,91.63,91.49,5.46]
[1645195338843,106.6,91.629,91.485,46.41137183]
[1645195339641,2.77232793,91.618,91.485,46.41137183]
[1645195339846,106.6,91.617,91.485,46.41137183]
[1645195340043,106.6,91.615,91.485,46.41137183]
[1645195340241,106.6,91.613,91.485,46.41137183]
[1645195340447,7.0,91.59,91.485,46.41137183]
[1645195340646,43.85503087,91.602,91.485,46.41137183]
[1645195340647,7.0,91.57,91.485,46.41137183]
[1645195340843,7.0,91.57,91.5,16.3914]
[1645195341043,5.462,91.639,91.485,46.41137183]
[1645195341244,19.01183877,91.6,91.485,46.41137183]
[1645195341446,5.461,91.599,91.485,46.41137183]
[1645195341670,63.65,91.598,91.485,46.41137183]
[1645195341846,63.65,91.598,91.441,24.0144]
[1645195341847,170.25,91.569,91.441,24.0144]
[1645195342047,63.65,91.559,91.374,5.464]
[1645195342249,7.0,91.56,91.374,5.464]
[1645195342250,106.6,91.52,91.374,5.464]
[1645195342447,0.53,91.481,91.359,4.95]
[1645195342647,5.466,91.519,91.359,4.95]
[1645195342648,5.469,91.499,91.359,4.95]
[1645195342847,9.94252774,91.499,91.36,40.94610365]
[1645195343050,9.94252774,91.499,91.36,40.44610365]
[1645195343251,9.94252774,91.499,91.361,106.6]
[1645195343447,9.94252774,91.499,91.36,40.44610365]
[1645195343448,9.94252774,91.499,91.38,16.4132]
[1645195343647,9.94252774,91.499,91.381,39.70798493]
[1645195343847,106.6,91.498,91.381,39.70798493]
[1645195344054,126.09021007,91.498,91.381,39.70798493]
[1645195344254,106.6,91.489,91.381,39.70798493]
[1645195344450,23.4181,91.49,91.381,39.70798493]
[1645195344850,7.0,91.51,91.381,39.70798493]
[1645195345051,5.53,91.561,91.381,39.70798493]
[1645195345052,12.82,91.56,91.381,39.70798493]
[1645195345250,7.0,91.53,91.381,39.70798493]
[1645195345454,7.0,91.53,91.382,106.6]
[1645195345655,7.0,91.54,91.389,5.0]
[1645195345851,41.60700376,91.533,91.391,106.6]
[1645195346050,41.60700376,91.533,91.41,16.4061]
[1645195346252,148.20700376,91.533,91.411,47.55684817]
[1645195347050,7.0,91.53,91.411,47.55684817]
[1645195347452,7.0,91.53,91.421,106.6]
[1645195347651,24.9001,91.549,91.421,106.6]
[1645195348451,24.9001,91.549,91.441,45.24327819]
[1645195349051,24.9001,91.549,91.44,16.4011]
[1645195349281,106.6,91.545,91.379,5.464]
[1645195349477,63.65,91.546,91.36,5.466]
[1645195349677,70.65,91.52,91.36,77.4562]
[1645195349879,23.4136,91.51,91.38,16.4128]
[1645195350080,10.48387564,91.509,91.381,52.16790166]
[1645195350283,63.65,91.502,91.381,52.16790166]
[1645195350480,106.6,91.499,91.381,52.16790166]
[1645195350883,106.6,91.499,91.381,51.77790166]
[1645195351080,16.4155,91.5,91.381,51.77790166]
[1645195351283,7.0,91.5,91.382,106.6]
[1645195351482,7.0,91.5,91.381,51.77790166]
[1645195351483,54.6996,91.56,91.384,106.6]
[1645195351685,7.0,91.55,91.383,5.468]
[1645195351883,7.0,91.55,91.382,5.466]
[1645195352083,63.65,91.553,91.382,5.466]
[1645195352283,43.40936962,91.528,91.382,5.466]
[1645195352484,43.40936962,91.528,91.39,16.4104]
[1645195352685,7.0,91.52,91.39,16.4104]
[1645195352886,7.0,91.52,91.39,13.9104]
[1645195353087,63.65,91.52,91.39,13.9104]
[1645195353285,43.40936962,91.528,91.39,13.9104]
[1645195375347,53.21,91.439,91.39,13.9104]
[1645195375544,16.4367,91.43,91.39,13.9104]
[1645195375743,5.53,91.401,91.39,13.9104]
[1645195375942,46.46551812,91.429,91.39,13.9104]
[1645195376180,5.53,91.401,91.39,13.9104]
[1645195376376,7.0,91.4,91.39,13.9104]
[1645195376579,26.0664831,91.4,91.39,13.9104]
[1645195376781,5.0,91.391,91.39,13.9104]
[1645195376976,5.53,91.391,91.39,13.9104]
[1645195378184,0.53,91.401,91.39,13.9104]
[1645195382134,5.476,91.421,91.39,13.9104]
[1645195382337,5.53,91.431,91.39,13.9104]
[1645195382338,63.65,91.424,91.39,13.9104]
[1645195382534,63.65,91.422,91.39,13.9104]
[1645195382733,5.473,91.423,91.39,13.9104]
[1645195383134,54.7854,91.4,91.39,13.9104]
[1645195383537,11.28138946,91.4,91.39,13.9104]
[1645195383741,106.6,91.399,91.39,13.9104]